fUST/lending_fUST_20260331
["ID","MTS","AMOUNT","RATE_DAILY","PERIOD"]
[419100442,1774886666115,500.0,0.00032876,120]
[419100443,1774886687635,500.0,0.00032877,120]
[419100444,1774886716743,1616.0,0.000309,120]
[419100445,1774886717157,1616.0,0.000319,120]
[419100446,1774886771475,500.0,0.00032876,120]
[419100447,1774886783752,500.0,0.00032876,120]
[419100448,1774886793887,5000.0,0.00030137,120]
[419100449,1774886794757,5000.0,0.00030137,120]
[419100450,1774886795521,5000.0,0.00030137,120]
[419100451,1774886796166,5000.0,0.00030137,120]
[419100452,1774886796885,5000.0,0.00030137,120]
[419100453,1774886798002,5000.0,0.00030137,120]
[419100454,1774886798697,5000.0,0.00030137,120]
[419100455,1774886800060,5000.0,0.00030137,120]
[419100456,1774886801122,5000.0,0.00030137,120]
[419100457,1774886802113,4999.9988,0.00030137,120]
[419100458,1774886821946,9998.98,0.00032876,120]
[419100459,1774886866792,5000.0,0.00032876,120]
[419100460,1774886906793,3923.76978143,0.00032876,120]
[419100461,1774886938921,199.58788487,0.0003287,120]
[419100463,1774886956091,1000.0,0.00032876,120]
[419100509,1774887032111,-200.0,8e-05,7]
[419100510,1774887032122,-1501.47030915,0.0001,10]
[419100511,1774887032131,-603.0,0.00012897,2]
[419100512,1774887032141,-1000.0,0.00013699,2]
[419100513,1774887032150,-178.86499469,0.00019595,2]
[419100514,1774887032160,-180.71298647,0.00020201,5]
[419100516,1774887032170,-197.58747972,0.0002147,5]
[419100517,1774887032179,-406.0,0.00022,2]
[419100519,1774887032188,-2265.68423956,0.00022,2]
[419100558,1774887038343,-4185.59729105,0.00022,2]
[419100627,1774887043562,-9463.06054123,0.00022,2]
[419100628,1774887043573,-599.60298507,0.00022751,2]
[419100629,1774887043583,-2398.4119403,0.00022751,2]
[419100630,1774887043594,-621.78829552,0.00022806,2]
[419100631,1774887043605,-644.79446246,0.00022861,2]
[419100632,1774887043614,-668.65185757,0.00022916,2]
[419100633,1774887043624,-693.3919763,0.00022971,2]
[419100635,1774887043634,-406.0,0.00023,2]
[419100636,1774887043644,-270.83333333,0.00023,2]
[419100637,1774887043654,-719.04747942,0.00023026,2]
[419100638,1774887043665,-745.65223616,0.00023081,2]
[419100639,1774887043674,-773.2413689,0.00023136,2]
[419100640,1774887043684,-801.85129955,0.00023191,2]
[419100641,1774887043697,-831.51979763,0.00023246,2]
[419100642,1774887043707,-2487.15318209,0.00023299,2]
[419100643,1774887043717,-862.28603014,0.00023301,2]
[419100644,1774887043726,-894.19061326,0.00023356,2]
[419100645,1774887043736,-1528.37402539,0.00023847,2]
[419100646,1774887043746,-406.0,0.00024,2]
[419100647,1774887043756,-324.8899299,0.00024077,2]
[419100648,1774887043766,-643.0,0.00024273,2]
[419100649,1774887043776,-2199.0,0.00024273,2]
[419100650,1774887043787,-1403.0,0.00024273,2]
[419100651,1774887043797,-439.0,0.00024273,2]
[419100652,1774887043808,-184.0,0.00024273,2]
[419100653,1774887043819,-376.05530654,0.00024274,2]
[419100654,1774887043829,-212.41415625,0.00024278,2]
[419100655,1774887043839,-167.090016,0.00024657,9]
[419100656,1774887043849,-324.8606328,0.00024912,2]
[419100657,1774887043859,-151.3882457,0.00024912,2]
[419100658,1774887043869,-167.090016,0.00024931,9]
[419100659,1774887043879,-500.0,0.00024999,2]
[419100660,1774887043890,-500.0,0.00024999,2]
[419100661,1774887043900,-236.60981193,0.00024999,2]
[419100662,1774887043911,-500.0,0.00024999,2]
[419100663,1774887043921,-500.0,0.00024999,2]
[419100664,1774887043931,-500.0,0.00024999,2]
[419100665,1774887043941,-504.13030928,0.00024999,2]
[419100666,1774887043951,-500.0,0.00024999,2]
[419100667,1774887043962,-500.0,0.00024999,2]
[419100668,1774887043971,-500.0,0.00024999,2]
[419100669,1774887043981,-335.51978558,0.00024999,2]
[419100670,1774887043991,-500.0,0.00024999,2]
[419100671,1774887044001,-540.92832624,0.00024999,2]
[419100672,1774887044011,-500.0,0.00024999,2]
[419100673,1774887044021,-500.0,0.00024999,2]
[419100674,1774887044031,-176.45317189,0.00024999,2]
[419100675,1774887044042,-500.0,0.00024999,2]
[419100676,1774887044051,-500.0,0.00024999,2]
[419100677,1774887044063,-500.0,0.00024999,2]
[419100678,1774887044073,-406.0,0.00025,2]
[419100679,1774887044083,-145670.8371928,0.00025,5]
[419100687,1774887046396,-4023.90919416,0.00025,5]
[419100688,1774887046408,-2525.61884548,0.00025,5]
[419100689,1774887046421,-10563.61115734,0.00025,5]
[419100690,1774887046433,-40787.87072632,0.00025,5]
[419100691,1774887046443,-400.0,0.000251,2]
[419100692,1774887046453,-4322.04729506,0.00025134,2]
[419100693,1774887046463,-5865.66989928,0.00025134,2]
[419100694,1774887046473,-1000.20070441,0.000252,7]
[419100695,1774887046483,-375986.74853221,0.00025224,2]
[419100704,1774887046600,-60216.63589979,0.00025224,2]
[419100705,1774887046610,-245.30798976,0.00025224,2]
[419100706,1774887046620,-180.884,0.00025234,2]
[419100707,1774887046629,-200.0,0.00025234,2]
[419100708,1774887046639,-269.942337,0.00025234,2]
[419100709,1774887046648,-269.942337,0.00025234,2]
[419100710,1774887046658,-269.942337,0.00025234,2]
[419100711,1774887046667,-269.942337,0.00025234,2]
[419100712,1774887046676,-151.0,0.00025234,2]
[419100713,1774887046685,-5135.322677,0.00025234,2]
[419100714,1774887046694,-5135.322677,0.00025234,2]
[419100715,1774887046704,-578.109067,0.00025234,2]
[419100716,1774887046714,-5135.322677,0.00025234,2]
[419100717,1774887046723,-578.109067,0.00025234,2]
[419100718,1774887046733,-5135.322677,0.00025234,2]
[419100719,1774887046743,-578.109067,0.00025234,2]
[419100720,1774887046752,-4762.58037,0.00025234,2]
[419100721,1774887046762,-4762.58037,0.00025234,2]
[419100722,1774887046771,-264.205145,0.00025234,2]
[419100723,1774887046780,-4762.58037,0.00025234,2]
[419100724,1774887046789,-4762.58037,0.00025234,2]
[419100725,1774887046799,-264.205145,0.00025234,2]
[419100726,1774887046808,-264.205145,0.00025234,2]
[419100727,1774887046817,-264.205145,0.00025234,2]
[419100728,1774887046827,-578.109067,0.00025234,2]
[419100729,1774887046836,-151.0,0.00025234,2]
[419100730,1774887046846,-151.0,0.00025234,2]
[419100731,1774887046855,-2120.917265,0.00025234,2]
[419100732,1774887046865,-432.83872,0.00025234,2]
[419100733,1774887046876,-2120.917265,0.00025234,2]
[419100734,1774887046887,-432.83872,0.00025234,2]
[419100735,1774887046897,-432.83872,0.00025234,2]
[419100736,1774887046907,-627634.58376458,0.00025234,2]
[419100739,1774887196559,1003.6438972,0.00032877,120]
[419100755,1774887517370,2987.796156,0.0003287,120]
[419100756,1774887749547,177.0,0.00023086,120]
[419100757,1774887874322,650.0,0.00032877,120]
[419100833,1774888232053,-615.0,0.00013698,2]
[419100834,1774888232062,-1000.0,0.00013699,2]
[419100836,1774888232072,-451.29088667,0.000219,2]
[419100838,1774888232081,-651.44671731,0.00022,2]
[419100840,1774888232092,-418.08328269,0.00022,2]
[419100842,1774888232102,-119.16871731,0.00022,2]
[419100845,1774888232124,-205.83128269,0.00022,2]
[419100847,1774888232133,-175.974761,0.00022973,2]
[419100849,1774888232143,-325.0,0.00023,2]
[419100851,1774888232153,-173.94395631,0.00023181,2]
[419100862,1774888232239,-244.05604369,0.00023181,2]
[419100864,1774888232248,-272.74395631,0.00023182,2]
[419100866,1774888232260,-796.78604369,0.00023182,2]
[419100868,1774888232270,-18.10974631,0.00023491,2]
[419100871,1774888232291,-281.89025369,0.00023491,2]
[419100873,1774888232303,-290.0,0.00023491,2]
[419100875,1774888232313,-123.90174631,0.00023492,30]
[419100878,1774888232326,-463.85822284,0.00023492,30]
[419101146,1774888238303,-412.24003085,0.00023492,30]
[419101147,1774888238315,-229.52182768,0.0002375,2]
[419101148,1774888238325,-325.0,0.00024,2]
[419101149,1774888238334,-1069.53,0.00024364,2]
[419101150,1774888238353,-194.74287015,0.00024461,2]
[419101151,1774888238363,-65.12561661,0.00024476,2]
[419101152,1774888238376,-1337.87438339,0.00024476,2]
[419101153,1774888238386,-2199.0,0.00024476,2]
[419101154,1774888238396,-599.29581618,0.00024476,2]
[419101155,1774888238414,-43.70418382,0.00024476,2]
[419101156,1774888238423,-184.0,0.00024476,2]
[419101157,1774888238434,-500.0,0.00024598,2]
[419101158,1774888238443,-500.0,0.00024598,2]
[419101159,1774888238453,-180.75305946,0.00024598,2]
[419101160,1774888238463,-500.0,0.00024598,2]
[419101161,1774888238474,-500.0,0.00024598,2]
[419101162,1774888238484,-500.0,0.00024598,2]
[419101163,1774888238494,-347.92540805,0.00024598,2]
[419101164,1774888238503,-500.0,0.00024598,2]
[419101165,1774888238513,-500.0,0.00024598,2]
[419101166,1774888238523,-500.0,0.00024598,2]
[419101167,1774888238532,-500.0,0.00024598,2]
[419101168,1774888238542,-500.0,0.00024598,2]
[419101169,1774888238552,-500.0,0.00024598,2]
[419101170,1774888238562,-500.0,0.00024598,2]
[419101171,1774888238571,-542.1358213,0.00024598,2]
[419101172,1774888238581,-500.0,0.00024598,2]
[419101173,1774888238590,-500.0,0.00024598,2]
[419101174,1774888238600,-500.0,0.00024598,2]
[419101175,1774888238610,-500.0,0.00024598,2]
[419101176,1774888238620,-417.91829091,0.00024598,2]
[419101177,1774888238630,-500.0,0.00024598,2]
[419101178,1774888238640,-500.0,0.00024598,2]
[419101179,1774888238649,-500.0,0.00024598,2]
[419101180,1774888238658,-500.0,0.00024598,2]
[419101181,1774888238790,-500.0,0.00024598,2]
[419101182,1774888238800,-500.0,0.00024598,2]
[419101183,1774888238811,-500.0,0.00024598,2]
[419101184,1774888238821,-500.0,0.00024598,2]
[419101185,1774888238832,-500.0,0.00024598,2]
[419101186,1774888238842,-500.0,0.00024598,2]
[419101187,1774888238852,-500.0,0.00024598,2]
[419101188,1774888238862,-500.0,0.00024598,2]
[419101189,1774888238872,-500.0,0.00024598,2]
[419101190,1774888239092,-500.0,0.00024598,2]
[419101191,1774888239102,-500.0,0.00024598,2]
[419101192,1774888239113,-500.0,0.00024598,2]
[419101193,1774888239124,-500.0,0.00024598,2]
[419101194,1774888239134,-500.0,0.00024598,2]
[419101195,1774888239144,-500.0,0.00024598,2]
[419101196,1774888239153,-500.0,0.00024598,2]
[419101197,1774888239163,-500.0,0.00024598,2]
[419101198,1774888239172,-500.0,0.00024598,2]
[419101199,1774888239182,-500.0,0.00024598,2]
[419101200,1774888239191,-500.0,0.00024598,2]
[419101201,1774888239200,-500.0,0.00024598,2]
[419101202,1774888239209,-500.0,0.00024598,2]
[419101203,1774888239219,-500.0,0.00024598,2]
[419101204,1774888239230,-500.0,0.00024598,2]
[419101205,1774888239240,-500.0,0.00024598,2]
[419101206,1774888239250,-529.1831579,0.00024598,2]
[419101207,1774888239260,-500.0,0.00024598,2]
[419101208,1774888239271,-500.0,0.00024598,2]
[419101209,1774888239281,-500.0,0.00024598,2]
[419101210,1774888239290,-532.15512329,0.00024598,2]
[419101211,1774888239300,-500.0,0.00024598,2]
[419101212,1774888239310,-500.0,0.00024598,2]
[419101213,1774888239319,-500.0,0.00024598,2]
[419101214,1774888239329,-500.0,0.00024598,2]
[419101215,1774888239338,-500.0,0.00024598,2]
[419101216,1774888239348,-47844.2987772,0.00024599,2]
[419101225,1774888241073,-512.77059311,0.00024599,2]
[419101245,1774888246436,-348436.45167274,0.00024599,2]
[419101246,1774888246492,-9324.2403483,0.00024599,2]
[419101291,1774888248859,-9128.56580408,0.00024599,2]
[419101292,1774888249076,-920.34923436,0.00024599,2]
[419101314,1774889349069,500.0,0.00032877,120]
[419101358,1774889432399,-499.98248337,0.00011282,2]
[419101360,1774889432410,-177.75480692,0.00011282,2]
[419101362,1774889432422,-401.24519308,0.00011282,2]
[419101364,1774889432432,-79.37417539,0.00011396,2]
[419101461,1774889438355,-4920.62582461,0.00011396,2]
[419101462,1774889438365,-180.6566447,0.00012729,2]
[419101464,1774889438375,-180.6566447,0.00012983,7]
[419101466,1774889438385,-1000.0,0.00013699,2]
[419101467,1774889438395,-1069.53,0.0002,2]
[419101468,1774889438405,-1069.53,0.00021625,2]
[419101469,1774889438414,-276.0,0.00022,2]
[419101471,1774889438424,-300.0,0.00022999,2]
[419101472,1774889438434,-1069.53,0.0002325,2]
[419101473,1774889438444,-436.47486132,0.00023973,2]
[419101474,1774889438454,-500.0,0.00024055,2]
[419101475,1774889438464,-500.0,0.00024055,2]
[419101476,1774889438474,-173.35435005,0.00024055,2]
[419101477,1774889438484,-643.54778564,0.00024055,2]
[419101478,1774889438496,-500.0,0.00024055,2]
[419101479,1774889438507,-500.0,0.00024055,2]
[419101480,1774889438517,-500.0,0.00024055,2]
[419101481,1774889438527,-500.0,0.00024055,2]
[419101482,1774889438536,-500.0,0.00024055,2]
[419101483,1774889438547,-500.0,0.00024055,2]
[419101484,1774889438558,-447.68701755,0.00024055,2]
[419101485,1774889438569,-500.0,0.00024055,2]
[419101486,1774889438580,-500.0,0.00024055,2]
[419101487,1774889438590,-500.0,0.00024055,2]
[419101488,1774889438601,-500.0,0.00024055,2]
[419101489,1774889438611,-500.0,0.00024055,2]
[419101490,1774889438621,-500.0,0.00024055,2]
[419101491,1774889438632,-500.0,0.00024055,2]
[419101492,1774889438642,-500.0,0.00024055,2]
[419101493,1774889438652,-500.0,0.00024055,2]
[419101494,1774889438663,-500.0,0.00024055,2]
[419101495,1774889438674,-500.0,0.00024055,2]
[419101496,1774889438683,-500.0,0.00024055,2]
[419101497,1774889438692,-500.0,0.00024055,2]
[419101498,1774889438703,-500.0,0.00024055,2]
[419101499,1774889438713,-500.0,0.00024055,2]
[419101500,1774889438722,-500.0,0.00024055,2]
[419101501,1774889438732,-500.0,0.00024055,2]
[419101502,1774889438742,-500.0,0.00024055,2]
[419101503,1774889438753,-500.0,0.00024055,2]
[419101504,1774889438763,-500.0,0.00024055,2]
[419101505,1774889438773,-532.02011072,0.00024055,2]
[419101506,1774889438783,-172874.0808443,0.00024056,2]
[419101507,1774889438802,-270.83333333,0.00024068,2]
[419101508,1774889438814,-500.0,0.00024073,2]
[419101509,1774889438824,-500.0,0.00024073,2]
[419101510,1774889438833,-513.27367128,0.00024073,2]
[419101511,1774889439002,-187.14218174,0.00024073,2]
[419101512,1774889439016,-500.07150662,0.00024073,2]
[419101513,1774889439026,-500.0,0.00024073,2]
[419101514,1774889439036,-500.0,0.00024073,2]
[419101515,1774889439046,-324.8899299,0.00024077,2]
[419101516,1774889439056,-2130.81528648,0.00024199,2]
[419101517,1774889439067,-500.0,0.00024273,2]
[419101518,1774889439076,-500.0,0.00024273,2]
[419101519,1774889439086,-500.0,0.00024273,2]
[419101520,1774889439095,-500.0,0.00024273,2]
[419101521,1774889439103,-500.55141755,0.00024273,2]
[419101522,1774889439113,-500.0,0.00024273,2]
[419101523,1774889439123,-500.0,0.00024273,2]
[419101524,1774889439133,-501.37937611,0.00024273,2]
[419101525,1774889439143,-500.0,0.00024273,2]
[419101526,1774889439154,-500.0,0.00024273,2]
[419101527,1774889439163,-409.21297968,0.00024273,2]
[419101528,1774889439172,-500.0,0.00024273,2]
[419101529,1774889439181,-500.71481766,0.00024273,2]
[419101530,1774889439191,-500.0,0.00024273,2]
[419101531,1774889439200,-500.0,0.00024298,2]
[419101532,1774889439209,-15249.40983707,0.00024299,2]
[419101537,1774889441017,-276.0,0.00023,2]
[419101538,1774889441027,-276.0,0.00024,2]
[419101539,1774889441037,-1881.1418704,0.00024299,2]
[419101540,1774889441125,-4085.21672862,0.00024299,2]
[419101541,1774889441137,-9621.62284973,0.00024299,2]
[419101548,1774889443745,-9117.5359101,0.00024299,2]
[419101552,1774889446420,-292.62526391,0.00024299,2]
[419101553,1774889446632,-17771.66466141,0.00024299,2]
[419101567,1774890338471,-289.03575981,0.000131,2]
[419101568,1774890354480,200.0,0.00032876,120]
[419101569,1774890359491,400.81924861,0.00032876,120]
[419101570,1774890368254,500.0,0.00032876,120]
[419101571,1774890368475,500.0,0.00032876,120]
[419101572,1774890368700,500.0,0.00032876,120]
[419101573,1774890368978,500.0,0.00032876,120]
[419101574,1774890369201,500.0,0.00032876,120]
[419101575,1774890369425,500.0,0.00032876,120]
[419101576,1774890370121,500.0,0.00032876,120]
[419101577,1774890370348,500.0,0.00032876,120]
[419101578,1774890370575,500.0,0.00032876,120]
[419101579,1774890370800,500.0,0.00032876,120]
[419101580,1774890371036,500.0,0.00032876,120]
[419101581,1774890371286,500.0,0.00032876,120]
[419101582,1774890371524,500.0,0.00032876,120]
[419101583,1774890371776,500.0,0.00032876,120]
[419101584,1774890372013,427.5646542,0.00032876,120]
[419101588,1774890489023,500.0,0.00032876,120]
[419101589,1774890489290,500.410168,0.00032876,120]
[419101594,1774890543418,500.0,0.00032876,120]
[419101595,1774890543638,500.0,0.00032876,120]
[419101596,1774890543863,500.0,0.00032876,120]
[419101597,1774890544394,500.0,0.00032876,120]
[419101598,1774890544628,500.0,0.00032876,120]
[419101599,1774890544867,500.0,0.00032876,120]
[419101600,1774890545105,500.0,0.00032876,120]
[419101601,1774890545331,500.0,0.00032876,120]
[419101602,1774890546261,500.0,0.00032876,120]
[419101603,1774890546443,481.63,0.00032876,120]
[419101672,1774890632841,-2096.93533678,7.6e-05,2]
[419101673,1774890632853,-247.19809888,7.6e-05,2]
[419101674,1774890632862,-608.0,0.00013232,2]
[419101675,1774890632871,-1115.34645571,0.00013265,2]
[419101676,1774890632881,-180.65664469,0.00013365,14]
[419101677,1774890632890,-1000.0,0.00013699,2]
[419101678,1774890632899,-1069.53,0.0002,2]
[419101679,1774890632908,-1609.9046858,0.00020633,2]
[419101680,1774890632918,-1000.0,0.00020991,2]
[419101681,1774890632928,-388.27744913,0.00021434,2]
[419101682,1774890632937,-443.74565615,0.00021434,2]
[419101683,1774890632947,-391.14874456,0.00021434,2]
[419101684,1774890632957,-235.0,0.00022,2]
[419101685,1774890632966,-1200.0,0.00022599,2]
[419101686,1774890632975,-1069.53,0.000226,2]
[419101687,1774890632985,-235.0,0.00023,2]
[419101688,1774890632995,-339.16387567,0.00023,2]
[419101689,1774890633005,-184.0,0.0002318,2]
[419101690,1774890633014,-300.0,0.00023748,2]
[419101691,1774890633024,-347.51113721,0.00023749,2]
[419101692,1774890633034,-500.0,0.00023754,2]
[419101693,1774890633044,-500.0,0.00023754,2]
[419101694,1774890633053,-221.82323629,0.00023754,2]
[419101695,1774890633063,-567.00738404,0.00023754,2]
[419101696,1774890633073,-500.0,0.00023754,2]
[419101697,1774890633083,-500.0,0.00023754,2]
[419101698,1774890633092,-500.0,0.00023754,2]
[419101699,1774890633103,-500.0,0.00023754,2]
[419101700,1774890633113,-500.0,0.00023754,2]
[419101701,1774890633122,-500.0,0.00023754,2]
[419101702,1774890633132,-500.0,0.00023754,2]
[419101703,1774890633142,-500.0,0.00023754,2]
[419101704,1774890633151,-500.0,0.00023754,2]
[419101705,1774890633161,-500.0,0.00023754,2]
[419101706,1774890633170,-462.5,0.00023754,2]
[419101707,1774890633179,-500.0,0.00023754,2]
[419101708,1774890633189,-500.0,0.00023754,2]
[419101709,1774890633198,-500.0,0.00023754,2]
[419101710,1774890633207,-500.0,0.00023754,2]
[419101711,1774890633217,-208.73084061,0.00023754,2]
[419101712,1774890633227,-500.0,0.00023754,2]
[419101713,1774890633237,-500.0,0.00023754,2]
[419101714,1774890633247,-157.54647677,0.00023754,2]
[419101715,1774890633257,-500.0,0.00023754,2]
[419101716,1774890633266,-500.0,0.00023754,2]
[419101717,1774890633276,-500.0,0.00023754,2]
[419101718,1774890633286,-500.0,0.00023754,2]
[419101719,1774890633296,-500.0,0.00023754,2]
[419101720,1774890633305,-500.0,0.00023754,2]
[419101721,1774890633325,-500.0,0.00023754,2]
[419101722,1774890633337,-500.0,0.00023754,2]
[419101723,1774890633347,-500.0,0.00023754,2]
[419101724,1774890633357,-500.0,0.00023754,2]
[419101725,1774890633367,-500.0,0.00023754,2]
[419101726,1774890633377,-500.0,0.00023754,2]
[419101727,1774890633388,-381.91550362,0.00023755,2]
[419101728,1774890633398,-156.03,0.00023755,2]
[419101729,1774890633408,-41730.43381079,0.00023755,2]
[419101730,1774890633429,-665.05,0.00023755,2]
[419101731,1774890633441,-5085.246198,0.00023755,2]
[419101758,1774890641771,-74876.39885942,0.00023755,2]
[419101759,1774890641783,-31542.74436907,0.00023755,2]
[419101772,1774890643932,-56215.70281955,0.00023755,2]
[419101779,1774890646670,-6555.36975062,0.00023755,2]
[419101780,1774890646682,-8026.83732293,0.00023755,2]
[419101781,1774890646882,-1082.59443861,0.00023755,2]
[419101791,1774890666021,500.0,0.00032876,120]
[419101792,1774890666272,500.0,0.00032876,120]
[419101793,1774890666493,500.0,0.00032876,120]
[419101794,1774890666708,165.56926935,0.00032876,120]
[419101795,1774890705033,151.0,0.00032876,120]
[419101798,1774890803550,833.33,0.00032876,120]
[419101799,1774890803827,833.33,0.00032876,120]
[419101800,1774890804082,833.33,0.00032876,120]
[419101801,1774890804365,833.33,0.00032876,120]
[419101802,1774890804606,833.33,0.00032876,120]
[419101803,1774890804845,833.33,0.00032876,120]
[419101804,1774890805109,833.33,0.00032876,120]
[419101805,1774890805351,833.33,0.00032876,120]
[419101806,1774890805591,833.33,0.00032876,120]
[419101807,1774890805829,833.33,0.00032876,120]
[419101808,1774890805907,500.0,0.00032876,120]
[419101809,1774890806144,500.0,0.00032876,120]
[419101810,1774890806177,833.33,0.00032876,120]
[419101811,1774890806392,500.0,0.00032876,120]
[419101812,1774890806567,833.33,0.00032876,120]
[419101813,1774890806636,500.0,0.00032876,120]
[419101814,1774890806666,833.33,0.00032876,120]
[419101815,1774890806881,833.33,0.00032876,120]
[419101816,1774890806911,500.0,0.00032876,120]
[419101817,1774890807119,833.33,0.00032876,120]
[419101818,1774890807152,500.0,0.00032876,120]
[419101819,1774890807368,833.33,0.00032876,120]
[419101820,1774890807399,500.0,0.00032876,120]
[419101821,1774890807603,833.33,0.00032876,120]
[419101822,1774890807636,500.0,0.00032876,120]
[419101823,1774890807842,833.33,0.00032876,120]
[419101824,1774890807875,500.0,0.00032876,120]
[419101825,1774890808086,833.33,0.00032876,120]
[419101826,1774890808122,500.0,0.00032876,120]
[419101827,1774890808334,833.33,0.00032876,120]
[419101828,1774890808366,284.78972317,0.00032876,120]
[419101829,1774890808574,833.33,0.00032876,120]
[419101830,1774890808811,833.33,0.00032876,120]
[419101831,1774890809063,833.33,0.00032876,120]
[419101832,1774890809303,833.41,0.00032876,120]
[419101840,1774891100348,500.0,0.00032876,120]
[419101841,1774891100570,500.470221,0.00032876,120]
[419101842,1774891129909,500.0,0.00032876,120]
[419101843,1774891130135,550.79720393,0.00032876,120]
[419101948,1774891832834,-1000.0,0.00013699,2]
[419101949,1774891832843,-615.0,0.00013699,2]
[419101950,1774891832853,-882.5941329,0.00013809,2]
[419101951,1774891832862,-1077.03891052,0.00013909,2]
[419101952,1774891832890,-699.68880174,0.00013909,2]
[419101953,1774891832900,-1800.31119826,0.00014991,2]
[419101954,1774891832911,-833.86470631,0.00014991,2]
[419101955,1774891832920,-300.0,0.00019271,2]
[419101956,1774891832930,-300.0,0.00019271,2]
[419101957,1774891832939,-300.0,0.00019271,2]
[419101958,1774891832948,-1496.58386499,0.00019272,20]
[419101959,1774891832967,-287.16003426,0.00019272,20]
[419102053,1774891838784,-1781.25097173,0.00019272,20]
[419102054,1774891838793,-3467.6440769,0.00019689,2]
[419102055,1774891838803,-902.92467913,0.0002,2]
[419102061,1774891838900,-166.60532087,0.0002,2]
[419102063,1774891838910,-157.0,0.000209,2]
[419102064,1774891838919,-157.0,0.000219,2]
[419102065,1774891838928,-211.0,0.00022,2]
[419102066,1774891838937,-157.0,0.000229,2]
[419102067,1774891838947,-211.0,0.00023,2]
[419102068,1774891838956,-151.0,0.00023291,2]
[419102069,1774891838966,-197.0999498,0.00023291,2]
[419102070,1774891838975,-270.83333333,0.00023442,2]
[419102071,1774891838985,-334.17606565,0.00023454,2]
[419102072,1774891838994,-500.0,0.00023554,2]
[419102073,1774891839004,-500.0,0.00023554,2]
[419102074,1774891839014,-500.0,0.00023554,2]
[419102075,1774891839024,-500.0,0.00023554,2]
[419102076,1774891839033,-500.0,0.00023554,2]
[419102077,1774891839042,-500.0,0.00023554,2]
[419102078,1774891839051,-500.0,0.00023554,2]
[419102079,1774891839069,-500.0,0.00023554,2]
[419102080,1774891839081,-500.0,0.00023554,2]
[419102081,1774891839090,-500.0,0.00023554,2]
[419102082,1774891839100,-500.0,0.00023554,2]
[419102083,1774891839109,-500.0,0.00023554,2]
[419102084,1774891839119,-500.0,0.00023554,2]
[419102085,1774891839128,-500.0,0.00023554,2]
[419102086,1774891839138,-500.0,0.00023554,2]
[419102087,1774891839148,-500.0,0.00023554,2]
[419102088,1774891839157,-500.0,0.00023554,2]
[419102089,1774891839168,-500.0,0.00023554,2]
[419102090,1774891839178,-516.22280129,0.00023554,2]
[419102091,1774891839188,-500.0,0.00023554,2]
[419102092,1774891839197,-500.0,0.00023554,2]
[419102093,1774891839207,-500.0,0.00023554,2]
[419102094,1774891839217,-500.0,0.00023554,2]
[419102095,1774891839227,-500.0,0.00023554,2]
[419102096,1774891839237,-10.33694819,0.00023554,2]
[419102132,1774891841300,-489.66305181,0.00023554,2]
[419102133,1774891841313,-500.0,0.00023554,2]
[419102134,1774891841323,-500.0,0.00023554,2]
[419102135,1774891841334,-500.0,0.00023554,2]
[419102136,1774891841344,-500.0,0.00023554,2]